bitfinex-derivatives/quotes_SOLF0:USTF0_20250413
["timestamp","ask_amount","ask_price","bid_price","bid_amount"]
[1744574150822,0.04488293,128.49,128.48,7.7847]
[1744574151121,0.04488293,128.49,128.46,0.05997014]
[1744574151322,0.04488293,128.49,128.47,7.7848]
[1744574152025,0.04488293,128.49,128.48,7.7847]
[1744574154324,3.7566,128.56,128.51,7.7826]
[1744574154523,7.7817,128.53,128.47,4.1074]
[1744574155126,7.7817,128.53,128.5,7.7831]
[1744574155329,51.18,128.54,128.47,4.1074]
[1744574155628,51.18,128.54,128.5,0.05303787]
[1744574156227,51.18,128.54,128.51,7.7823]
[1744574156424,51.18,128.54,128.5,0.05303787]
[1744574156832,51.18,128.54,128.53,7.7816]
[1744574157329,51.18,128.54,128.5,0.05303787]
[1744574157519,51.18,128.54,128.51,7.7827]
[1744574157831,51.18,128.54,128.5,0.05303787]
[1744574158026,7.7826,128.52,128.5,0.05303787]
[1744574158227,51.18,128.54,128.5,0.05303787]
[1744574159630,7.7828,128.51,128.5,0.05303787]
[1744574160834,74.07713003,128.54,128.42,2.0945]
[1744574161032,74.07713003,128.54,128.44,7.7867]
[1744574161230,22.89713003,128.51,128.41,2.0307]
[1744574161530,22.89713003,128.48,128.37,4.0347]
[1744574161722,7.7862,128.46,128.37,6.0654]
[1744574161928,51.0,128.47,128.37,6.0654]
[1744574161929,0.05303787,128.44,128.41,0.05244151]
[1744574163334,51.0,128.47,128.41,22.94957154]
[1744574164033,58.7846,128.49,128.45,7.7859]
[1744574164636,58.7846,128.49,128.46,0.05716418]
[1744574164936,58.7846,128.49,128.46,7.84266418]
[1744574166636,7.7847,128.48,128.46,0.05716418]
[1744574166830,51.0,128.49,128.46,0.05716418]
[1744574167030,51.0,128.52,128.46,0.05716418]
[1744574167234,51.0,128.52,128.44,22.89713003]
[1744574167437,7.7838,128.5,128.48,0.05511478]
[1744574167934,51.0,128.52,128.48,0.05511478]
[1744574168137,7.7831,128.51,128.48,7.83971478]
[1744574171434,73.89713003,128.52,128.48,0.05511478]
[1744574171739,0.05366953,128.51,128.41,22.89713003]
[1744574171938,7.7844,128.49,128.45,7.7861]
[1744574172345,7.7844,128.49,128.41,22.89713003]
[1744574172533,7.7836,128.5,128.46,7.7855]
[1744574172734,0.04919999,128.46,128.44,0.05297544]
[1744574172934,51.0,128.52,128.41,22.89713003]
[1744574173136,7.7838,128.5,128.46,7.7856]
[1744574173337,0.05511478,128.48,128.46,7.7856]
[1744574173644,0.05511478,128.48,128.47,0.0553375]
[1744574175345,0.05511478,128.48,128.47,7.8406375]
[1744574179840,30.73224481,128.48,128.35,386.89713003]
[1744574180045,22.89713003,128.45,128.36,2.1062]
[1744574180238,51.0,128.44,128.36,2.1062]
[1744574180745,58.7874,128.44,128.36,2.1062]
[1744574180945,0.05492078,128.41,128.39,0.0579282]
[1744574184644,7.84422078,128.41,128.39,0.0579282]
[1744574185145,0.05492078,128.41,128.39,0.0579282]
[1744574185445,7.7895,128.4,128.39,0.0579282]
[1744574188544,7.7912,128.38,128.33,2.1184]
[1744574189445,7.7914,128.37,128.33,2.1184]
[1744574189651,7.84450245,128.37,128.34,0.05254405]
[1744574190250,7.7925,128.35,128.34,0.05254405]
[1744574192353,7.84490245,128.37,128.34,0.05254405]
[1744574192646,0.05310245,128.37,128.34,0.05254405]
[1744574192950,7.7925,128.35,128.34,0.05254405]
[1744574195448,7.7922,128.36,128.34,0.05254405]
[1744574196154,7.7925,128.35,128.34,0.05254405]
[1744574199754,50.86,128.35,128.28,4.0624]
[1744574200956,50.86,128.35,128.3,0.04963887]
[1744574200957,0.0566388,128.33,128.3,0.04963887]
[1744574201760,50.86,128.35,128.3,0.04963887]
[1744574201955,616.96,128.39,128.3,0.04963887]
[1744574202164,7.7909,128.38,128.29,22.89713003]
[1744574202358,7.7909,128.38,128.32,22.89713003]
[1744574202561,50.86,128.4,128.33,1.9927]
[1744574202756,58.6499,128.4,128.33,1.9927]
[1744574203064,0.05874026,128.38,128.35,0.05992235]
[1744574204165,50.86,128.43,128.35,22.95705238]
[1744574204358,50.86,128.43,128.35,22.89713003]
[1744574205259,50.86,128.47,128.38,22.94889094]
[1744574205459,50.86,128.47,128.39,2.1038]
[1744574205759,50.86,128.47,128.4,2.1739]
[1744574206164,7.7865,128.45,128.4,2.1739]
[1744574206359,7.83677849,128.45,128.42,0.05933066]
[1744574207263,0.05027849,128.45,128.42,0.05933066]
[1744574207859,50.86,128.47,128.42,0.05933066]
[1744574208062,50.86,128.52,128.42,0.05933066]
[1744574208262,50.86,128.52,128.41,22.89713003]
[1744574208758,7.7832,128.51,128.41,22.89713003]
[1744574208955,50.86,128.52,128.45,0.05651905]
[1744574209157,50.86,128.52,128.45,2.10911905]
[1744574209357,58.6426,128.52,128.45,2.10911905]
[1744574209559,50.86,128.52,128.46,2.0236]
[1744574209964,7.7841,128.49,128.48,0.049365]
[1744574212768,7.7856,128.47,128.41,22.89713003]
[1744574212968,73.73713003,128.47,128.35,22.89713003]
[1744574213157,3.4646,128.46,128.35,2.0771]
[1744574213361,7.7896,128.4,128.35,2.0771]
[1744574213562,50.84,128.42,128.35,2.0771]
[1744574213965,0.049365,128.4,128.37,0.05068704]
[1744574214562,7.7907,128.38,128.37,0.05068704]
[1744574215069,7.7929,128.35,128.31,365.9887]
[1744574215265,7.7929,128.35,128.31,1.9887]
[1744574215467,2.0074,128.4,128.31,1.9887]
[1744574215771,2.0469,128.39,128.31,1.9887]
[1744574216268,0.05932611,128.36,128.34,0.05196426]
[1744574218073,7.7925,128.35,128.34,0.05196426]
[1744574218567,7.85142611,128.36,128.34,0.05196426]
[1744574218771,0.05932611,128.36,128.34,0.05196426]
[1744574219268,616.94,128.41,128.34,0.05196426]
[1744574219676,7.7907,128.39,128.34,0.05196426]
[1744574219971,616.94,128.41,128.34,0.05196426]
[1744574220467,0.04072593,128.39,128.34,0.05196426]
[1744574220770,7.7913,128.37,128.34,0.05196426]
[1744574220967,0.04072593,128.39,128.34,0.05196426]
[1744574221369,7.7914,128.37,128.34,0.05196426]
[1744574222872,7.792,128.36,128.34,0.05196426]
[1744574223074,616.94,128.41,128.34,0.05196426]
[1744574223274,0.04072593,128.36,128.34,0.05196426]
[1744574223468,7.7918,128.37,128.34,0.05196426]
[1744574223665,0.04072593,128.36,128.34,0.05196426]
[1744574223864,616.94,128.41,128.34,0.05196426]
[1744574224068,0.04072593,128.36,128.34,0.05196426]
[1744574224269,616.94,128.41,128.34,0.05196426]
[1744574224472,0.04072593,128.36,128.34,0.05196426]
[1744574224674,616.94,128.41,128.34,0.05196426]
[1744574224873,0.04072593,128.36,128.34,0.05196426]
[1744574225171,50.68072593,128.36,128.34,0.05196426]
[1744574225366,73.57785596,128.36,128.24,364.0]
[1744574225569,22.89713003,128.33,128.21,420.8741]
[1744574225971,2.1322,128.35,128.22,22.89713003]
[1744574226370,7.7947,128.32,128.22,22.89713003]
[1744574226574,0.05670372,128.3,128.27,0.05076201]
[1744574226773,0.05670372,128.3,128.22,386.89713003]
[1744574226970,7.7947,128.32,128.27,0.04948903]
[1744574227370,7.7947,128.32,128.22,386.89713003]
[1744574227576,7.7953,128.31,128.22,386.89713003]
[1744574227778,22.89713003,128.34,128.22,386.89713003]
[1744574227973,50.64,128.31,128.22,364.0]
[1744574228173,7.83318647,128.28,128.25,0.0594883]
[1744574228580,0.03598647,128.28,128.25,0.0594883]
[1744574229180,50.64,128.31,128.25,0.0594883]
[1744574230671,7.798,128.27,128.25,0.0594883]
[1744574230969,52.6454,128.31,128.25,0.0594883]
[1744574232181,7.798,128.26,128.25,0.0594883]
[1744574238284,7.8005,128.22,128.18,2.0937]
[1744574238478,50.68,128.26,128.18,2.0937]
[1744574239381,7.8004,128.22,128.21,0.05696574]
[1744574240085,0.05511831,128.23,128.21,0.05696574]
[1744574241187,7.8004,128.22,128.21,0.05696574]
[1744574241977,7.8026,128.19,128.17,2.0042]
[1744574242486,7.8018,128.2,128.17,2.0042]
[1744574242985,7.8023,128.19,128.17,2.0042]
[1744574243287,0.0535828,128.2,128.17,2.05858312]
[1744574246785,0.0535828,128.2,128.17,0.05438312]
[1744574247286,7.8552828,128.2,128.17,0.05438312]
[1744574247686,0.0535828,128.2,128.17,0.05438312]
[1744574248388,7.8026,128.19,128.17,0.05438312]
[1744574248589,0.0535828,128.2,128.17,0.05438312]
[1744574248978,7.8027,128.19,128.17,0.05438312]
[1744574249990,0.0535828,128.2,128.17,0.05438312]
[1744574250583,1.9815,128.25,128.17,0.05438312]
[1744574250786,24.95663003,128.27,128.16,22.89713003]
[1744574251281,22.89713003,128.24,128.14,2.0178]
[1744574251593,22.89713003,128.21,128.11,50.46]
[1744574251887,53.11804201,128.2,128.08,368.1103]
[1744574252189,7.8055,128.14,128.08,368.1103]
[1744574252389,53.058,128.2,128.08,368.1103]
[1744574252989,0.04917058,128.15,128.13,0.05605374]
[1744574253190,22.89713003,128.18,128.13,0.05605374]
[1744574253384,0.0540886,128.15,128.13,0.05605374]
[1744574253586,7.8053,128.14,128.13,0.05605374]
[1744574254594,7.808,128.1,128.05,427.9201041]
[1744574255087,73.37713003,128.15,128.05,427.9201041]
[1744574255288,73.37713003,128.15,128.05,63.9201041]
[1744574255587,7.8075,128.11,128.05,63.9201041]
[1744574255791,7.86514384,128.11,128.09,0.0573453]
[1744574256691,0.05764384,128.11,128.09,0.0573453]
[1744574257794,7.8061,128.13,128.09,0.0573453]
[1744574257990,50.48,128.15,128.09,0.0573453]
[1744574258394,7.8059,128.14,128.09,0.0573453]
[1744574258992,0.05960521,128.13,128.09,0.0573453]
[1744574260493,7.86580521,128.13,128.09,0.0573453]
[1744574261391,0.05960521,128.13,128.09,0.0573453]
[1744574262194,7.86600521,128.13,128.09,0.0573453]
[1744574262395,0.05960521,128.13,128.09,0.0573453]
[1744574263397,7.86600521,128.13,128.09,0.0573453]
[1744574264197,7.8066,128.12,128.09,0.0573453]
[1744574265896,7.86580521,128.13,128.09,0.0573453]
[1744574266497,0.05960521,128.13,128.09,0.0573453]
[1744574266691,7.8068,128.12,128.09,0.0573453]
[1744574266892,0.05960521,128.13,128.09,0.0573453]
[1744574267295,7.8066,128.12,128.09,0.0573453]
[1744574267796,7.86580521,128.13,128.09,0.0573453]
[1744574268502,0.05960521,128.13,128.09,0.0573453]
[1744574269199,7.86560521,128.13,128.09,0.0573453]
[1744574270199,0.05960521,128.13,128.09,0.0573453]
[1744574271201,7.86560521,128.13,128.09,0.0573453]
[1744574271896,0.05960521,128.13,128.09,0.0573453]
[1744574273010,0.05960521,128.13,128.11,14.32583243]
[1744574273205,670.6842,128.2,128.12,2.0563]
[1744574273406,14.32583243,128.17,128.09,0.0573453]
[1744574273607,14.32583243,128.17,128.07,14.32583243]
[1744574274013,14.32583243,128.15,128.05,382.58543243]
[1744574274209,14.32583243,128.13,128.05,4.2596]
[1744574274409,0.05916289,128.11,128.09,0.05314629]
[1744574274609,14.38499532,128.11,128.09,0.05314629]
[1744574274809,0.05916289,128.11,128.09,0.05314629]
[1744574275211,7.8078,128.1,128.09,0.05314629]
[1744574276312,7.8096,128.07,128.02,52.5649]
[1744574276714,14.32583243,128.11,128.02,52.5649]
[1744574276916,7.8093,128.08,128.02,52.5649]
[1744574277409,7.8093,128.08,128.04,0.05544161]
[1744574277614,0.05443974,128.06,128.04,0.05544161]
[1744574279713,7.86503974,128.06,128.04,0.05544161]
[1744574280415,0.05443974,128.06,128.04,0.05544161]
[1744574281111,7.86493974,128.06,128.04,0.05544161]
[1744574281317,0.05443974,128.06,128.04,0.05544161]
[1744574281916,7.8108,128.05,128.04,0.05544161]
[1744574282414,0.05443974,128.06,128.04,0.05544161]
[1744574282415,7.86493974,128.06,128.04,0.05544161]
[1744574282612,0.05443974,128.06,128.04,0.05544161]
[1744574285416,0.05443974,128.06,128.04,14.38127404]
[1744574285619,4.1558,128.13,128.05,50.26]
[1744574285822,7.8075,128.11,128.05,54.4915]
[1744574286121,4.1558,128.13,128.05,54.4915]
[1744574286722,0.05030227,128.1,128.08,0.05467231]
[1744574287022,1.61158251,128.1,128.08,0.05467231]
[1744574287422,9.36980213,128.09,128.08,0.05467231]
[1744574287816,9.36980213,128.09,128.01,986.5655]
[1744574287817,7.8108,128.05,128.01,984.4993]
[1744574288024,1.56188988,128.05,127.97,14.32583243]
[1744574288219,1.56188988,128.05,127.97,101.30784884]
[1744574288619,1.56188988,128.05,128.01,14.32583243]
[1744574288923,0.05698362,128.04,128.02,0.05074877]
[1744574289321,1.56188988,128.05,128.02,0.05074877]
[1744574289720,1.56188988,128.05,128.02,50.31074877]
[1744574290224,50.26,128.11,128.02,73.25340668]
[1744574290417,0.05577313,128.05,128.02,73.20265791]
[1744574290612,7.8087,128.09,128.05,0.05930473]
[1744574291020,50.26,128.11,128.05,0.05930473]
[1744574291021,0.04998839,128.08,128.05,23.00196264]
[1744574291317,73.20265791,128.19,128.05,22.94265791]
[1744574291516,73.20265791,128.19,128.08,22.94265791]
[1744574291726,73.20265791,128.19,128.08,73.20265791]
[1744574292025,73.20265791,128.19,128.08,50.26]
[1744574292026,50.26,128.19,128.08,50.26]
[1744574292324,50.26,128.19,128.12,0.05526614]
[1744574292527,22.94265791,128.18,128.12,0.05526614]
[1744574292723,7.8059,128.13,128.12,0.05526614]
[1744574293126,2.0002,128.17,128.12,0.05526614]
[1744574293327,7.8057,128.14,128.12,0.05526614]
[1744574293729,2.0002,128.17,128.12,0.05526614]
[1744574293927,7.8059,128.13,128.12,0.05526614]
[1744574294328,2.0002,128.17,128.06,4.1487]
[1744574294529,7.8075,128.11,128.06,4.1487]
[1744574294926,7.8079,128.1,128.06,4.1487]
[1744574295131,7.8079,128.1,128.06,2.0202]
[1744574295532,0.05816791,128.09,128.07,0.05930385]
[1744574295731,7.86656791,128.09,128.07,0.05930385]
[1744574296130,7.86676791,128.09,128.07,0.05930385]
[1744574296634,0.05816791,128.09,128.07,0.05930385]
[1744574296930,7.809,128.08,128.07,0.05930385]
[1744574297132,0.05816791,128.09,128.07,0.05930385]
[1744574297732,7.809,128.08,128.07,0.05930385]
[1744574299630,7.86676791,128.09,128.07,0.05930385]
[1744574299928,0.05816791,128.09,128.07,0.05930385]
[1744574310738,4.0637,128.17,128.07,0.05930385]
[1744574311035,4.0637,128.17,128.06,24.99955791]
[1744574311235,7.8057,128.14,128.06,24.99955791]
[1744574311442,4.0637,128.17,128.06,24.99955791]
[1744574312129,4.0637,128.17,128.1,0.0522173]
[1744574312934,22.94265791,128.16,128.1,0.0522173]
[1744574313538,7.8071,128.11,128.1,0.0522173]
[1744574314738,22.94265791,128.16,128.1,0.0522173]
[1744574315239,7.8071,128.11,128.1,0.0522173]
[1744574317038,1.56115837,128.11,128.1,0.0522173]
[1744574318242,4.0752,128.21,128.1,50.0322173]
[1744574318443,4.0752,128.21,128.11,2.1632]
[1744574318644,4.0752,128.21,128.13,0.05264612]
[1744574318842,4.0752,128.21,128.11,2.1632]
[1744574319039,4.0752,128.21,128.16,0.05421839]
[1744574320143,7.8038,128.17,128.16,0.05421839]
[1744574321740,2.039,128.21,128.16,0.05421839]
[1744574322139,7.8026,128.19,128.16,0.05421839]
[1744574322644,7.8035,128.17,128.16,0.05421839]
[1744574323447,7.8059,128.14,128.07,49.98]
[1744574323647,7.8059,128.14,128.07,54.1152]
[1744574324141,22.94265791,128.17,128.07,54.1152]
[1744574324348,54.1686,128.16,128.07,54.1152]
[1744574324549,0.05077506,128.13,128.11,0.04984283]
[1744574324745,7.807,128.12,128.11,0.04984283]
[1744574326050,7.85697506,128.13,128.11,0.04984283]
[1744574326549,0.05077506,128.13,128.11,0.04984283]
[1744574326751,7.8065,128.12,128.11,0.04984283]
[1744574327547,7.85687506,128.13,128.11,0.04984283]
[1744574328253,0.05077506,128.13,128.11,0.04984283]
[1744574328551,0.05077506,128.13,128.04,1.9913]
[1744574328751,7.8092,128.08,128.04,1.9913]
[1744574329752,0.05070013,128.07,128.05,0.05573949]
[1744574336564,49.98,128.11,128.05,0.05573949]
[1744574336768,7.8063,128.13,128.05,0.05573949]
[1744574337065,668.34,128.15,128.05,50.0]
[1744574337266,7.8055,128.14,128.07,22.94265791]
[1744574337562,7.8055,128.14,128.08,4.0071]
[1744574337766,0.05393925,128.12,128.09,0.05985306]
[1744574338266,49.98,128.19,128.09,0.05985306]
[1744574338463,7.8045,128.16,128.08,4.0071]
[1744574339268,7.8045,128.16,128.11,0.05591918]
[1744574340565,22.94265791,128.18,128.11,0.05591918]
[1744574340964,7.8063,128.13,128.05,414.0]
[1744574341167,7.8063,128.13,128.1,0.05778862]
[1744574343271,7.8056,128.14,128.1,0.05778862]
[1744574344365,7.8061,128.13,128.1,0.05778862]
[1744574344769,49.7,128.16,128.1,0.05778862]
[1744574344970,24.95065791,128.15,128.02,2.0453]
[1744574345174,22.94265791,128.12,128.02,2.0453]
[1744574345363,7.81,128.07,128.02,2.0453]
[1744574345566,1.56176792,128.06,128.02,2.0453]
[1744574346071,9.37206792,128.06,128.02,2.0453]
[1744574346671,0.05937645,128.05,128.03,0.05693164]
[1744574357077,51.8679,128.15,128.03,49.75693164]
[1744574357277,51.8679,128.15,128.07,14.32662523]
[1744574358077,7.8075,128.11,128.07,14.32662523]
[1744574358273,7.8075,128.11,128.1,0.05002875]
[1744574358473,14.32662523,128.13,128.04,1.9683]
[1744574358977,7.8093,128.08,128.04,1.9683]
[1744574359576,0.05074573,128.07,128.05,0.05200754]
[1744574361676,7.8102,128.06,128.05,0.05200754]
[1744574361872,0.05074573,128.07,128.05,0.05200754]
[1744574363180,7.8102,128.06,128.05,0.05200754]
[1744574366678,0.05074573,128.07,128.05,0.05200754]
[1744574367085,0.05074573,128.07,128.05,14.37863277]
[1744574368881,7.8073,128.11,128.05,14.37863277]
[1744574369076,7.8073,128.11,128.07,14.32662523]
[1744574369282,53.9437,128.14,128.05,14.32662523]
[1744574369784,7.8081,128.1,128.05,14.32662523]
[1744574369985,7.8081,128.1,128.06,0.05426796]
[1744574371988,7.8074,128.11,128.06,0.05426796]
[1744574372289,7.8074,128.11,128.05,14.32662523]
[1744574372485,7.8074,128.11,128.07,0.05090409]
[1744574373287,7.8079,128.1,128.07,0.05090409]
[1744574375090,7.8074,128.11,128.07,0.05090409]
[1744574375792,7.8079,128.1,128.07,0.05090409]
[1744574378587,7.8074,128.11,128.07,0.05090409]
[1744574379792,7.8078,128.1,128.07,0.05090409]
[1744574380093,53.9437,128.14,128.07,0.05090409]
[1744574380690,53.9437,128.14,128.07,14.37752932]
[1744574380895,7.8068,128.12,128.07,14.37752932]
[1744574382385,7.8072,128.11,128.07,0.05090409]
[1744574385598,53.9437,128.14,128.07,0.05090409]
[1744574386598,7.808,128.1,128.07,0.05090409]
[1744574386801,53.9437,128.14,128.07,0.05090409]
[1744574387800,7.8066,128.12,128.07,0.05090409]
[1744574388601,7.8072,128.11,128.07,0.05090409]
[1744574390406,53.9437,128.14,128.07,14.37752932]
[1744574390900,49.4,128.18,128.11,14.32662523]
[1744574391105,4.1822,128.2,128.13,14.32662523]
[1744574391405,7.8025,128.19,128.13,14.3838938]
[1744574391704,4.1822,128.2,128.13,14.3838938]
[1744574392103,7.8029,128.18,128.13,14.3838938]
[1744574392798,7.8025,128.19,128.13,14.3838938]
[1744574393003,4.1822,128.2,128.13,14.3838938]
[1744574393905,9.9341,128.2,128.13,14.3838938]
[1744574394703,7.8016,128.21,128.13,14.3838938]
[1744574394910,7.8016,128.21,128.15,14.32662523]
[1744574395105,7.8016,128.21,128.16,0.05764323]
[1744574395406,57.2006,128.22,128.16,0.05764323]
[1744574395602,49.4,128.22,128.16,0.05764323]
[1744574395907,57.2006,128.22,128.16,0.05764323]
[1744574396206,49.4,128.22,128.16,0.05764323]
[1744574396597,2.0436,128.23,128.17,14.32662523]
[1744574396801,2.1074,128.24,128.17,14.32662523]
[1744574397000,2.1074,128.24,128.19,0.0556342]
[1744574397302,51.5694,128.26,128.19,14.38225943]
[1744574397505,51.5694,128.26,128.19,0.0556342]
[1744574397701,65.89602523,128.26,128.19,0.0556342]
[1744574397897,7.7993,128.24,128.19,0.0556342]
[1744574398806,7.8001,128.23,128.19,0.0556342]
[1744574399005,65.89602523,128.26,128.19,0.0556342]
[1744574399705,51.5694,128.26,128.19,0.0556342]
[1744574400506,7.799,128.25,128.19,0.0556342]
[1744574400707,51.5694,128.26,128.19,0.0556342]
[1744574401306,7.7988,128.25,128.19,0.0556342]
[1744574402201,59.3677,128.26,128.2,14.32662523]
[1744574402406,2.1694,128.26,128.16,14.32662523]
[1744574402602,7.7996,128.24,128.22,0.05188937]
[1744574402802,2.1694,128.26,128.17,14.32662523]
[1744574403002,49.06,128.25,128.22,0.0539401]
[1744574403203,7.8025,128.19,128.15,49.4]
[1744574403403,14.32662523,128.22,128.11,63.38662523]
[1744574403899,14.32662523,128.2,128.1,18.50072523]
[1744574404104,14.32662523,128.18,128.09,2.0615]
[1744574404305,7.805,128.15,128.14,0.0510907]
[1744574404511,0.0539401,128.16,128.14,0.0510907]
[1744574405007,0.0539401,128.16,128.08,73.82176238]
[1744574405306,14.32662523,128.14,128.08,59.49513715]
[1744574405510,51.0481,128.13,128.08,59.49513715]
[1744574405712,1.9881,128.13,128.08,59.49513715]
[1744574406011,7.8644504,128.12,128.09,0.06003989]
[1744574406406,7.8072,128.11,128.09,0.06003989]
[1744574407405,0.0573504,128.12,128.09,0.06003989]
[1744574408115,49.06,128.18,128.1,22.9291749]
[1744574408519,49.06,128.18,128.11,1.9971]
[1744574409413,0.0476804,128.16,128.13,0.05949591]
[1744574409614,7.8518804,128.16,128.13,0.05949591]
[1744574409814,0.0476804,128.16,128.13,0.05949591]
[1744574410715,0.0476804,128.16,128.13,22.98867081]
[1744574410910,9.36134072,128.21,128.13,72.06867081]
[1744574411105,1.55994072,128.21,128.13,72.06867081]
[1744574411308,1.55994072,128.21,128.16,22.9291749]
[1744574411515,1.55994072,128.21,128.17,2.0041]
[1744574412214,1.55994072,128.21,128.18,0.05950079]
[1744574412718,7.799,128.25,128.18,0.05950079]
[1744574413416,622.17,128.29,128.19,22.9291749]
[1744574413914,622.17,128.29,128.23,0.05657475]
[1744574414510,7.8002,128.23,128.18,49.06]
[1744574415612,0.05105071,128.22,128.19,0.05285691]
[1744574415819,22.9291749,128.24,128.14,364.0]
[1744574416013,22.9291749,128.21,128.1,71.9891749]
[1744574416219,49.06,128.2,128.1,71.9891749]
[1744574416619,7.8042,128.16,128.1,71.9891749]
[1744574416920,49.06,128.2,128.1,71.9891749]
[1744574417222,0.04955712,128.14,128.12,0.04986986]
[1744574417421,49.06,128.2,128.1,49.06]
[1744574417614,0.05542279,128.14,128.12,0.05293328]
[1744574417920,7.8033,128.18,128.1,71.9891749]
[1744574418121,0.05711927,128.14,128.12,0.05256256]
[1744574418420,49.06,128.2,128.1,71.9891749]
[1744574418621,0.05140539,128.14,128.12,0.05877386]
[1744574419019,0.0527285,128.14,128.1,71.9891749]
[1744574419223,0.0527285,128.14,128.12,0.05314018]
[1744574420821,0.0527285,128.14,128.06,49.06]
[1744574421125,7.8094,128.08,128.02,51.1474]
[1744574421529,1.56091469,128.13,128.02,51.1474]
[1744574421919,1.56091469,128.13,128.02,53.3202]
[1744574422226,7.8099,128.07,128.06,0.05845675]
[1744574422627,0.05065461,128.09,128.06,0.05845675]
[1744574423326,7.85945461,128.09,128.06,0.05845675]
[1744574423527,0.05065461,128.09,128.06,0.05845675]
[1744574424929,7.8096,128.07,128.06,0.05845675]
[1744574426228,7.8118,128.04,127.98,49.08]
[1744574426423,2.0136,128.08,128.0,22.9291749]
[1744574426624,49.08,128.1,128.0,22.9291749]
[1744574426824,7.8097,128.07,128.0,22.9291749]
[1744574427027,49.08,128.1,128.0,22.9291749]
[1744574427231,7.8101,128.07,128.0,22.9291749]
[1744574427434,0.05276225,128.06,128.04,0.05179562]
[1744574427935,49.08,128.1,128.04,0.05179562]
[1744574428135,49.08,128.1,128.04,6.29949562]
[1744574429130,0.05008925,128.08,128.04,6.29949562]
[1744574429737,1.56091469,128.13,128.06,22.9291749]
[1744574430124,1.56091469,128.13,128.04,6.2477]
[1744574430328,7.808,128.1,128.05,22.9291749]
[1744574430629,1.56091469,128.13,128.04,2.1385]
[1744574430630,50.66091469,128.13,128.04,2.1385]
[1744574430831,2.071,128.12,128.02,22.9291749]
[1744574431129,0.05111013,128.1,128.07,0.05977308]
[1744574431325,7.809,128.08,128.07,0.05977308]
[1744574431529,0.05111013,128.1,127.99,71.7291749]
[1744574431831,2.0941,128.07,127.99,22.9291749]
[1744574432032,50.8941,128.07,127.99,22.9291749]
[1744574432233,7.8112,128.05,127.99,22.9291749]
[1744574432433,50.8941,128.07,127.99,22.9291749]
[1744574432732,0.05689618,128.04,128.02,0.05624988]
[1744574432934,7.86839618,128.04,128.02,0.05624988]
[1744574433636,7.812,128.03,128.02,0.05624988]
[1744574437534,0.05689618,128.04,127.91,48.8]
[1744574437736,73.7853749,128.03,127.9,22.9291749]
[1744574438037,692.3053749,128.03,127.9,22.9291749]
[1744574438239,22.9291749,128.0,127.87,391.1116749]
[1744574438439,5.88342207,127.99,127.87,27.1116749]
[1744574438738,50.36274417,127.98,127.9,22.9291749]
[1744574438939,0.05334293,127.94,127.92,0.05940224]
[1744574440439,7.8181,127.93,127.92,0.05940224]
[1744574440837,0.05334293,127.94,127.92,0.05940224]
[1744574441745,7.8181,127.93,127.92,0.05940224]
[1744574441940,0.05334293,127.94,127.92,0.05940224]
[1744574443745,48.84,127.93,127.85,50.9826]
[1744574444043,50.9537,127.93,127.85,2.1826]
[1744574444342,7.8203,127.9,127.85,2.1826]
[1744574444533,50.9537,127.93,127.85,2.1826]
[1744574444734,3.60887717,127.92,127.83,22.9291749]
[1744574444933,0.04943591,127.9,127.82,2.0011]
[1744574445139,0.04943591,127.9,127.78,22.9291749]
[1744574445442,1.56384392,127.89,127.77,6.1533]
[1744574445644,48.84,127.88,127.77,6.1533]
[1744574445844,3.63038852,127.87,127.77,6.1533]
[1744574446145,0.05916654,127.83,127.81,0.05784713]
[1744574447647,48.89916654,127.83,127.75,36.74497305]
[1744574447839,7.8266,127.8,127.75,36.74497305]
[1744574448039,48.84,127.83,127.76,22.9291749]
[1744574448942,0.05025312,127.81,127.78,0.05767753]
[1744574449937,7.87615312,127.81,127.78,0.05767753]
[1744574450436,0.05025312,127.81,127.78,0.05767753]
[1744574451548,48.91025312,127.81,127.78,0.05767753]
[1744574451948,48.91025312,127.81,127.7,22.9291749]
[1744574452257,24.9242749,127.8,127.69,11.29434326]
[1744574452451,1.56506768,127.79,127.69,2.1081]
[1744574452946,7.8311,127.72,127.69,2.1081]
[1744574453150,0.05668019,127.75,127.64,22.9291749]
[1744574453342,48.88,127.76,127.64,22.9291749]
[1744574453543,7.8329,127.69,127.64,22.9291749]